[Event "Titled Tuesday Blitz November 08 Early 2022"]
[White "Gurevich, Dmitry"]
[Black "Crevatin, Leo"]
[WhiteFideId "2000407"]
[BlackFideId "1726307"]
[WhiteElo "2506"]
[BlackElo "2208"]
[Result "0-1"]
[Round "08"]
[TimeControl "180+1"]
[Date "2022.11.09"]
[WhiteClock "0:00:08"]
[BlackClock "0:00:23"]

1. d4 {[%clk 0:03:00]}  Nf6 {[%clk 0:02:59]} 2. c4 {[%clk 0:03:01]}  e6 {[%clk 0:02:59]} 3. Nc3 {[%clk 0:03:00]}  Bb4 {[%clk 0:02:59]} 4. a3 {[%clk 0:03:00]}  Bxc3+ {[%clk 0:02:59]} 5. bxc3 {[%clk 0:03:01]}  c6 {[%clk 0:02:55]} 6. e3 {[%clk 0:03:01]}  d5 {[%clk 0:02:54]} 7. Nf3 {[%clk 0:02:58]}  b6 {[%clk 0:02:51]} 8. Bd3 {[%clk 0:02:52]}  Ba6 {[%clk 0:02:49]} 9. Qe2 {[%clk 0:02:52]}  Nbd7 {[%clk 0:02:45]} 10. O-O {[%clk 0:02:51]}  O-O {[%clk 0:02:43]} 11. a4 {[%clk 0:02:50]}  Qc7 {[%clk 0:02:42]} 12. Ba3 {[%clk 0:02:49]}  Rfc8 {[%clk 0:02:42]} 13. Nd2 {[%clk 0:02:39]}  c5 {[%clk 0:02:39]} 14. cxd5 {[%clk 0:02:37]}  Bxd3 {[%clk 0:02:38]} 15. Qxd3 {[%clk 0:02:36]}  exd5 {[%clk 0:02:29]} 16. Rfc1 {[%clk 0:02:33]}  c4 {[%clk 0:02:25]} 17. Qf5 {[%clk 0:02:31]}  Re8 {[%clk 0:02:22]} 18. Re1 {[%clk 0:02:29]}  g6 {[%clk 0:02:14]} 19. Qh3 {[%clk 0:02:26]}  Ne4 {[%clk 0:02:10]} 20. Nxe4 {[%clk 0:02:24]}  Rxe4 {[%clk 0:02:08]} 21. f3 {[%clk 0:02:23]}  Re6 {[%clk 0:02:08]} 22. e4 {[%clk 0:02:23]}  dxe4 {[%clk 0:02:01]} 23. fxe4 {[%clk 0:02:22]}  Nf6 {[%clk 0:02:02]} 24. d5 {[%clk 0:02:13]}  Rxe4 {[%clk 0:01:56]} 25. d6 {[%clk 0:02:05]}  Qc8 {[%clk 0:01:47]} 26. Qf3 {[%clk 0:01:53]}  Qe6 {[%clk 0:01:43]} 27. Rxe4 {[%clk 0:01:46]}  Nxe4 {[%clk 0:01:41]} 28. Re1 {[%clk 0:01:45]}  f5 {[%clk 0:01:41]} 29. Qe3 {[%clk 0:01:43]}  Qd5 {[%clk 0:01:37]} 30. g4 {[%clk 0:01:35]}  Nxd6 {[%clk 0:01:22]} 31. Qf4 {[%clk 0:01:17]}  Ne4 {[%clk 0:01:17]} 32. gxf5 {[%clk 0:01:12]}  gxf5 {[%clk 0:01:17]} 33. Qf3 {[%clk 0:00:58]}  Kh8 {[%clk 0:01:09]} 34. Rf1 {[%clk 0:00:44]}  Rg8+ {[%clk 0:01:08]} 35. Kh1 {[%clk 0:00:44]}  h6 {[%clk 0:00:49]} 36. Bc1 {[%clk 0:00:41]}  Kh7 {[%clk 0:00:45]} 37. Be3 {[%clk 0:00:36]}  Nxc3 {[%clk 0:00:43]} 38. Qxd5 {[%clk 0:00:28]}  Nxd5 {[%clk 0:00:44]} 39. Bd4 {[%clk 0:00:28]}  Rf8 {[%clk 0:00:40]} 40. Re1 {[%clk 0:00:26]}  Rf7 {[%clk 0:00:37]} 41. Re8 {[%clk 0:00:26]}  Rc7 {[%clk 0:00:34]} 42. Rd8 {[%clk 0:00:22]}  Nb4 {[%clk 0:00:27]} 43. Rh8+ {[%clk 0:00:16]}  Kg6 {[%clk 0:00:27]} 44. Rg8+ {[%clk 0:00:16]}  Kh5 {[%clk 0:00:26]} 45. Rg3 {[%clk 0:00:15]}  Nd5 {[%clk 0:00:24]} 46. Rh3+ {[%clk 0:00:13]}  Kg6 {[%clk 0:00:24]} 47. Rg3+ {[%clk 0:00:13]}  Kh7 {[%clk 0:00:24]} 48. Rf3 {[%clk 0:00:10]}  c3 {[%clk 0:00:23]} 49. Rxf5 {[%clk 0:00:08]}  c2 {[%clk 0:00:23]} 0-1


[Site "https://www.chess.com"]

[Event "Titled Tuesday Blitz November 08 Early 2022"]
[White "Harsha Bharathakoti"]
[Black "Harsh Suresh"]
[WhiteFideId "5078776"]
[BlackFideId "45018464"]
[WhiteElo "2523"]
[BlackElo "2227"]
[Result "1/2-1/2"]
[Round "08"]
[TimeControl "180+1"]
[Date "2022.11.08"]
[WhiteClock "0:00:02"]
[BlackClock "0:00:04"]

1. c4 {[%clk 0:03:00]}  g6 {[%clk 0:02:59]} 2. Nc3 {[%clk 0:02:58]}  Bg7 {[%clk 0:02:59]} 3. e4 {[%clk 0:02:55]}  c5 {[%clk 0:02:51]} 4. g3 {[%clk 0:02:50]}  Nc6 {[%clk 0:02:51]} 5. Bg2 {[%clk 0:02:51]}  h5 {[%clk 0:02:51]} 6. h3 {[%clk 0:02:48]}  d6 {[%clk 0:02:52]} 7. Nge2 {[%clk 0:02:48]}  Be6 {[%clk 0:02:52]} 8. d3 {[%clk 0:02:47]}  Qc8 {[%clk 0:02:52]} 9. Nd5 {[%clk 0:02:43]}  Nf6 {[%clk 0:02:49]} 10. Rb1 {[%clk 0:02:39]}  Bd7 {[%clk 0:02:44]} 11. Bg5 {[%clk 0:02:33]}  Nxd5 {[%clk 0:02:32]} 12. exd5 {[%clk 0:02:33]}  Nd4 {[%clk 0:02:24]} 13. Nxd4 {[%clk 0:02:32]}  Bxd4 {[%clk 0:02:25]} 14. h4 {[%clk 0:02:21]}  b5 {[%clk 0:02:12]} 15. O-O {[%clk 0:02:20]}  f6 {[%clk 0:02:09]} 16. Bd2 {[%clk 0:02:13]}  O-O {[%clk 0:02:07]} 17. Re1 {[%clk 0:02:10]}  Rf7 {[%clk 0:02:02]} 18. Be3 {[%clk 0:02:06]}  Bxe3 {[%clk 0:01:58]} 19. Rxe3 {[%clk 0:02:07]}  Qa6 {[%clk 0:01:58]} 20. Qb3 {[%clk 0:01:55]}  Qa4 {[%clk 0:01:34]} 21. Qxa4 {[%clk 0:01:35]}  bxa4 {[%clk 0:01:35]} 22. Kf1 {[%clk 0:01:29]}  Rb8 {[%clk 0:01:34]} 23. Ke1 {[%clk 0:01:30]}  Rg7 {[%clk 0:01:21]} 24. Kd2 {[%clk 0:01:28]}  Kf7 {[%clk 0:01:14]} 25. Bf3 {[%clk 0:01:26]}  Rb7 {[%clk 0:01:08]} 26. Kc3 {[%clk 0:01:25]}  Rg8 {[%clk 0:01:08]} 27. Rbe1 {[%clk 0:01:22]}  Bf5 {[%clk 0:01:05]} 28. Bd1 {[%clk 0:01:18]}  a3 {[%clk 0:00:59]} 29. bxa3 {[%clk 0:01:11]}  Rgb8 {[%clk 0:00:58]} 30. Ba4 {[%clk 0:01:09]}  Kf8 {[%clk 0:00:51]} 31. R3e2 {[%clk 0:00:26]}  Bd7 {[%clk 0:00:30]} 32. Bc2 {[%clk 0:00:18]}  Bf5 {[%clk 0:00:26]} 33. f3 {[%clk 0:00:18]}  Kf7 {[%clk 0:00:23]} 34. Ba4 {[%clk 0:00:18]}  Kf8 {[%clk 0:00:22]} 35. Bc6 {[%clk 0:00:18]}  Rc7 {[%clk 0:00:22]} 36. a4 {[%clk 0:00:09]}  Rb4 {[%clk 0:00:13]} 37. a3 {[%clk 0:00:08]}  Rb8 {[%clk 0:00:13]} 38. a5 {[%clk 0:00:04]}  Kf7 {[%clk 0:00:11]} 39. a6 {[%clk 0:00:03]}  Rb6 {[%clk 0:00:10]} 40. Bb7 {[%clk 0:00:02]}  Kf8 {[%clk 0:00:09]} 41. Rb2 {[%clk 0:00:01]}  Rxb2 {[%clk 0:00:08]} 42. Kxb2 {[%clk 0:00:02]}  Bxd3 {[%clk 0:00:09]} 43. Kc3 {[%clk 0:00:03]}  Bf5 {[%clk 0:00:10]} 44. Re2 {[%clk 0:00:03]}  Kf7 {[%clk 0:00:07]} 45. Bc6 {[%clk 0:00:02]}  Bc8 {[%clk 0:00:07]} 46. Bb5 {[%clk 0:00:02]}  g5 {[%clk 0:00:07]} 47. Rh2 {[%clk 0:00:01]}  Kg6 {[%clk 0:00:07]} 48. Kd3 {[%clk 0:00:02]}  e5 {[%clk 0:00:06]} 49. dxe6 {[%clk 0:00:01]}  Bxe6 {[%clk 0:00:06]} 50. Re2 {[%clk 0:00:02]}  Re7 {[%clk 0:00:05]} 51. Kc3 {[%clk 0:00:02]}  Kf7 {[%clk 0:00:05]} 52. Bc6 {[%clk 0:00:02]}  g4 {[%clk 0:00:04]} 53. f4 {[%clk 0:00:02]}  Bf5 {[%clk 0:00:03]} 54. Bd5+ {[%clk 0:00:02]}  Kf8 {[%clk 0:00:04]} 55. Rb2 {[%clk 0:00:02]}  Re3+ {[%clk 0:00:02]} 56. Kd2 {[%clk 0:00:03]}  Rxg3 {[%clk 0:00:03]} 57. Rb8+ {[%clk 0:00:02]}  Kg7 {[%clk 0:00:03]} 58. Rb7+ {[%clk 0:00:03]}  Kg6 {[%clk 0:00:04]} 59. Rxa7 {[%clk 0:00:03]}  Rxa3 {[%clk 0:00:04]} 60. Ra8 {[%clk 0:00:03]}  Bd7 {[%clk 0:00:03]} 61. a7 {[%clk 0:00:03]}  Kf5 {[%clk 0:00:03]} 62. Kc2 {[%clk 0:00:01]}  g3 {[%clk 0:00:03]} 63. Kb2 {[%clk 0:00:02]}  Ra4 {[%clk 0:00:04]} 64. Kb3 {[%clk 0:00:01]}  Rb4+ {[%clk 0:00:04]} 65. Kc3 {[%clk 0:00:02]}  Ra4 {[%clk 0:00:05]} 66. Kb3 {[%clk 0:00:03]}  Kxf4 {[%clk 0:00:05]} 67. Kb2 {[%clk 0:00:01]}  f5 {[%clk 0:00:04]} 68. Kb3 {[%clk 0:00:01]}  Rb4+ {[%clk 0:00:03]} 69. Ka3 {[%clk 0:00:01]}  Ra4+ {[%clk 0:00:04]} 70. Kb3 {[%clk 0:00:02]}  Ra5 {[%clk 0:00:05]} 71. Kb2 {[%clk 0:00:02]}  Ra4 {[%clk 0:00:04]} 72. Kb3 {[%clk 0:00:02]} 1/2-1/2


[Site "https://www.chess.com"]

[Event "Titled Tuesday Blitz November 08 Early 2022"]
[White "Izuzquiza Gonzalez, Javier"]
[Black "Korelskiy, Egor"]
[WhiteFideId "3101029"]
[BlackFideId "34329064"]
[WhiteElo "2034"]
[BlackElo "2043"]
[Result "0-1"]
[Round "08"]
[TimeControl "180+1"]
[Date "2022.11.09"]
[WhiteClock "0:00:20"]
[BlackClock "0:01:04"]

1. d4 {[%clk 0:03:00]}  d5 {[%clk 0:02:59]} 2. c4 {[%clk 0:03:01]}  e6 {[%clk 0:03:00]} 3. Nf3 {[%clk 0:03:00]}  c6 {[%clk 0:03:00]} 4. g3 {[%clk 0:03:00]}  dxc4 {[%clk 0:03:00]} 5. Bg2 {[%clk 0:02:58]}  b5 {[%clk 0:03:00]} 6. O-O {[%clk 0:02:58]}  Bb7 {[%clk 0:03:00]} 7. a4 {[%clk 0:02:59]}  Nd7 {[%clk 0:02:59]} 8. Qc2 {[%clk 0:02:54]}  Ngf6 {[%clk 0:02:57]} 9. Nbd2 {[%clk 0:02:53]}  Be7 {[%clk 0:02:56]} 10. b3 {[%clk 0:02:51]}  cxb3 {[%clk 0:02:52]} 11. Nxb3 {[%clk 0:02:52]}  a6 {[%clk 0:02:46]} 12. Rd1 {[%clk 0:02:51]}  O-O {[%clk 0:02:39]} 13. Nc5 {[%clk 0:02:46]}  Bxc5 {[%clk 0:02:18]} 14. dxc5 {[%clk 0:02:47]}  Qe7 {[%clk 0:02:18]} 15. Rd6 {[%clk 0:01:39]}  Rfd8 {[%clk 0:02:14]} 16. Bg5 {[%clk 0:01:37]}  Nxc5 {[%clk 0:02:00]} 17. Rxd8+ {[%clk 0:01:28]}  Rxd8 {[%clk 0:01:59]} 18. axb5 {[%clk 0:01:24]}  cxb5 {[%clk 0:01:57]} 19. Bxf6 {[%clk 0:01:18]}  Qxf6 {[%clk 0:01:53]} 20. Rc1 {[%clk 0:01:18]}  Rc8 {[%clk 0:01:43]} 21. h4 {[%clk 0:01:09]}  h6 {[%clk 0:01:39]} 22. Rd1 {[%clk 0:00:51]}  Qe7 {[%clk 0:01:35]} 23. Qb2 {[%clk 0:00:42]}  Na4 {[%clk 0:01:29]} 24. Qd4 {[%clk 0:00:37]}  Nc3 {[%clk 0:01:27]} 25. Rd2 {[%clk 0:00:34]}  b4 {[%clk 0:01:25]} 26. Ne5 {[%clk 0:00:28]}  Bxg2 {[%clk 0:01:22]} 27. Kxg2 {[%clk 0:00:28]}  b3 {[%clk 0:01:12]} 28. Nc4 {[%clk 0:00:23]}  Nd5 {[%clk 0:01:04]} 29. Rc2 {[%clk 0:00:20]} 0-1


[Site "https://www.chess.com"]

[Event "Titled Tuesday Blitz November 08 Early 2022"]
[White "Janaszak, Dawid"]
[Black "Luberanski, Jakub"]
[WhiteFideId "1119206"]
[BlackFideId "21830509"]
[WhiteElo "2226"]
[BlackElo "2109"]
[Result "0-1"]
[Round "08"]
[TimeControl "180+1"]
[Date "2022.11.09"]
[WhiteClock "0:00:13"]
[BlackClock "0:00:12"]

1. e4 {[%clk 0:02:57]}  c6 {[%clk 0:02:54]} 2. d4 {[%clk 0:02:57]}  d5 {[%clk 0:02:55]} 3. exd5 {[%clk 0:02:58]}  cxd5 {[%clk 0:02:54]} 4. Bd3 {[%clk 0:02:58]}  Nc6 {[%clk 0:02:55]} 5. c3 {[%clk 0:02:58]}  Nf6 {[%clk 0:02:55]} 6. Bf4 {[%clk 0:02:58]}  Bg4 {[%clk 0:02:56]} 7. Qb3 {[%clk 0:02:58]}  Qd7 {[%clk 0:02:56]} 8. Nd2 {[%clk 0:02:57]}  e6 {[%clk 0:02:56]} 9. Ngf3 {[%clk 0:02:58]}  Bd6 {[%clk 0:02:57]} 10. Bxd6 {[%clk 0:02:58]}  Qxd6 {[%clk 0:02:58]} 11. O-O {[%clk 0:02:58]}  O-O {[%clk 0:02:58]} 12. Rae1 {[%clk 0:02:56]}  Bh5 {[%clk 0:02:54]} 13. Ne5 {[%clk 0:02:56]}  Qc7 {[%clk 0:02:54]} 14. f4 {[%clk 0:02:55]}  Bg6 {[%clk 0:02:53]} 15. Bxg6 {[%clk 0:02:54]}  hxg6 {[%clk 0:02:54]} 16. Rf3 {[%clk 0:02:48]}  Ne7 {[%clk 0:02:52]} 17. Rh3 {[%clk 0:02:46]}  Nf5 {[%clk 0:02:52]} 18. Qd1 {[%clk 0:02:41]}  Nd6 {[%clk 0:02:51]} 19. Qf3 {[%clk 0:02:31]}  Qe7 {[%clk 0:02:43]} 20. g4 {[%clk 0:02:18]}  Nfe4 {[%clk 0:02:34]} 21. Nf1 {[%clk 0:02:18]}  Qe8 {[%clk 0:01:43]} 22. Nd3 {[%clk 0:02:08]}  f6 {[%clk 0:01:41]} 23. Ng3 {[%clk 0:02:03]}  g5 {[%clk 0:01:30]} 24. f5 {[%clk 0:01:51]}  Qf7 {[%clk 0:01:29]} 25. Nf2 {[%clk 0:01:43]}  Nxf2 {[%clk 0:01:22]} 26. Qxf2 {[%clk 0:01:33]}  exf5 {[%clk 0:01:22]} 27. Nxf5 {[%clk 0:01:31]}  Nxf5 {[%clk 0:01:12]} 28. Qxf5 {[%clk 0:01:29]}  g6 {[%clk 0:01:09]} 29. Qe6 {[%clk 0:01:26]}  Qxe6 {[%clk 0:01:04]} 30. Rxe6 {[%clk 0:01:25]}  Rae8 {[%clk 0:01:05]} 31. Rhe3 {[%clk 0:01:21]}  Kf7 {[%clk 0:00:47]} 32. Rxe8 {[%clk 0:01:18]}  Rxe8 {[%clk 0:00:48]} 33. Kf2 {[%clk 0:01:15]}  Rh8 {[%clk 0:00:46]} 34. h3 {[%clk 0:01:14]}  b5 {[%clk 0:00:42]} 35. Ke2 {[%clk 0:01:10]}  Rc8 {[%clk 0:00:39]} 36. Kd3 {[%clk 0:01:10]}  a6 {[%clk 0:00:35]} 37. b3 {[%clk 0:01:09]}  Rc7 {[%clk 0:00:34]} 38. Re2 {[%clk 0:01:07]}  Rc8 {[%clk 0:00:34]} 39. a3 {[%clk 0:01:04]}  Rh8 {[%clk 0:00:33]} 40. Re3 {[%clk 0:01:02]}  Rc8 {[%clk 0:00:33]} 41. Kd2 {[%clk 0:00:55]}  Rc7 {[%clk 0:00:27]} 42. Re1 {[%clk 0:00:53]}  Rc8 {[%clk 0:00:28]} 43. Kc2 {[%clk 0:00:42]}  Rh8 {[%clk 0:00:27]} 44. Re3 {[%clk 0:00:41]}  Rc8 {[%clk 0:00:27]} 45. Kb2 {[%clk 0:00:41]}  Rb8 {[%clk 0:00:24]} 46. Ka2 {[%clk 0:00:35]}  Rc8 {[%clk 0:00:24]} 47. a4 {[%clk 0:00:32]}  bxa4 {[%clk 0:00:19]} 48. b4 {[%clk 0:00:32]}  f5 {[%clk 0:00:14]} 49. Kb2 {[%clk 0:00:23]}  f4 {[%clk 0:00:14]} 50. Re5 {[%clk 0:00:20]}  a3+ {[%clk 0:00:15]} 51. Kxa3 {[%clk 0:00:19]}  Rxc3+ {[%clk 0:00:14]} 52. Ka4 {[%clk 0:00:20]}  Rxh3 {[%clk 0:00:13]} 53. Rxd5 {[%clk 0:00:17]}  f3 {[%clk 0:00:13]} 54. Rc5 {[%clk 0:00:17]}  f2 {[%clk 0:00:10]} 55. Rc1 {[%clk 0:00:17]}  Rf3 {[%clk 0:00:10]} 56. Rf1 {[%clk 0:00:18]}  Ke6 {[%clk 0:00:11]} 57. Ka5 {[%clk 0:00:18]}  Kd5 {[%clk 0:00:12]} 58. Kxa6 {[%clk 0:00:18]}  Kxd4 {[%clk 0:00:12]} 59. b5 {[%clk 0:00:19]}  Ke3 {[%clk 0:00:13]} 60. b6 {[%clk 0:00:20]}  Ke2 {[%clk 0:00:13]} 61. Rb1 {[%clk 0:00:13]}  f1=Q {[%clk 0:00:13]} 62. Rb2+ {[%clk 0:00:13]}  Ke3+ {[%clk 0:00:12]} 0-1


[Site "https://www.chess.com"]

[Event "Titled Tuesday Blitz November 08 Early 2022"]
[White "Jiganchine, Roman"]
[Black "Alhadad, Mahmoud"]
[WhiteFideId "2603667"]
[BlackFideId "11501863"]
[WhiteElo "2329"]
[BlackElo "1955"]
[Result "1-0"]
[Round "08"]
[TimeControl "180+1"]
[Date "2022.11.09"]
[WhiteClock "0:00:20"]
[BlackClock "0:00:03"]

1. e4 {[%clk 0:02:59]}  d5 {[%clk 0:02:54]} 2. exd5 {[%clk 0:02:59]}  Nf6 {[%clk 0:02:53]} 3. c4 {[%clk 0:02:58]}  e6 {[%clk 0:02:53]} 4. d4 {[%clk 0:02:57]}  exd5 {[%clk 0:02:53]} 5. Nc3 {[%clk 0:02:58]}  Bb4 {[%clk 0:02:49]} 6. Bd3 {[%clk 0:02:57]}  O-O {[%clk 0:02:48]} 7. Ne2 {[%clk 0:02:57]}  dxc4 {[%clk 0:02:47]} 8. Bxc4 {[%clk 0:02:57]}  Nc6 {[%clk 0:02:47]} 9. O-O {[%clk 0:02:57]}  Bg4 {[%clk 0:02:45]} 10. f3 {[%clk 0:02:56]}  Bh5 {[%clk 0:02:35]} 11. Be3 {[%clk 0:02:56]}  Re8 {[%clk 0:02:34]} 12. Bf2 {[%clk 0:02:55]}  Ne7 {[%clk 0:02:14]} 13. Nf4 {[%clk 0:02:52]}  Bd6 {[%clk 0:02:05]} 14. Nxh5 {[%clk 0:02:45]}  Nxh5 {[%clk 0:02:06]} 15. Qb3 {[%clk 0:02:45]}  Rf8 {[%clk 0:01:56]} 16. Ne4 {[%clk 0:02:37]}  Nf4 {[%clk 0:01:31]} 17. Rfe1 {[%clk 0:02:22]}  Nf5 {[%clk 0:01:11]} 18. Rad1 {[%clk 0:02:20]}  Nh4 {[%clk 0:01:11]} 19. g3 {[%clk 0:02:04]}  Nh3+ {[%clk 0:01:02]} 20. Kh1 {[%clk 0:02:04]}  Nxf2+ {[%clk 0:00:55]} 21. Nxf2 {[%clk 0:02:05]}  Nf5 {[%clk 0:00:47]} 22. Kg2 {[%clk 0:02:05]}  Qf6 {[%clk 0:00:45]} 23. Ne4 {[%clk 0:01:58]}  Qg6 {[%clk 0:00:45]} 24. Nxd6 {[%clk 0:01:43]}  Nxd6 {[%clk 0:00:44]} 25. Bd5 {[%clk 0:01:42]}  Rfe8 {[%clk 0:00:32]} 26. a4 {[%clk 0:01:06]}  h5 {[%clk 0:00:31]} 27. h4 {[%clk 0:01:04]}  c6 {[%clk 0:00:30]} 28. Bc4 {[%clk 0:00:56]}  Nf5 {[%clk 0:00:30]} 29. f4 {[%clk 0:00:52]}  Nxh4+ {[%clk 0:00:30]} 30. Kh3 {[%clk 0:00:52]}  Nf5 {[%clk 0:00:30]} 31. Re5 {[%clk 0:00:46]}  Qg4+ {[%clk 0:00:29]} 32. Kh2 {[%clk 0:00:44]}  Nd6 {[%clk 0:00:29]} 33. Be2 {[%clk 0:00:40]}  Qg6 {[%clk 0:00:23]} 34. Bxh5 {[%clk 0:00:39]}  Qh6 {[%clk 0:00:23]} 35. Kg2 {[%clk 0:00:31]}  g6 {[%clk 0:00:20]} 36. Bg4 {[%clk 0:00:28]}  Rxe5 {[%clk 0:00:12]} 37. dxe5 {[%clk 0:00:29]}  Ne4 {[%clk 0:00:12]} 38. Rd7 {[%clk 0:00:27]}  Qg7 {[%clk 0:00:11]} 39. Rxf7 {[%clk 0:00:26]}  Qxf7 {[%clk 0:00:06]} 40. Be6 {[%clk 0:00:26]}  Nc5 {[%clk 0:00:06]} 41. Bxf7+ {[%clk 0:00:26]}  Kg7 {[%clk 0:00:07]} 42. Qc4 {[%clk 0:00:25]}  b6 {[%clk 0:00:07]} 43. Be6 {[%clk 0:00:25]}  Re8 {[%clk 0:00:07]} 44. Bg4 {[%clk 0:00:25]}  Re7 {[%clk 0:00:07]} 45. Bf3 {[%clk 0:00:25]}  Ne6 {[%clk 0:00:07]} 46. Qxc6 {[%clk 0:00:24]}  Nd4 {[%clk 0:00:07]} 47. Qd6 {[%clk 0:00:23]}  Nf5 {[%clk 0:00:07]} 48. Qf6+ {[%clk 0:00:21]}  Kh6 {[%clk 0:00:06]} 49. Qg5+ {[%clk 0:00:20]}  Kg7 {[%clk 0:00:05]} 50. Qf6+ {[%clk 0:00:20]}  Kh6 {[%clk 0:00:05]} 51. Be4 {[%clk 0:00:20]}  Ne3+ {[%clk 0:00:05]} 52. Kf3 {[%clk 0:00:20]}  Ng4 {[%clk 0:00:03]} 53. Qxg6# {[%clk 0:00:20]} 1-0


[Site "https://www.chess.com"]

[Event "Titled Tuesday Blitz November 08 Early 2022"]
[White "Jones, Gawain C B"]
[Black "Xiong, Jeffery"]
[WhiteFideId "409561"]
[BlackFideId "2047640"]
[WhiteElo "2657"]
[BlackElo "2725"]
[Result "0-1"]
[Round "08"]
[TimeControl "180+1"]
[Date "2022.11.08"]
[WhiteClock "0:00:02"]
[BlackClock "0:00:55"]

1. Nf3 {[%clk 0:03:00]}  c5 {[%clk 0:02:51]} 2. e4 {[%clk 0:02:59]}  d6 {[%clk 0:02:51]} 3. Bb5+ {[%clk 0:02:59]}  Nc6 {[%clk 0:02:38]} 4. O-O {[%clk 0:02:58]}  Bd7 {[%clk 0:02:37]} 5. Re1 {[%clk 0:02:57]}  Nf6 {[%clk 0:02:16]} 6. c3 {[%clk 0:02:57]}  a6 {[%clk 0:02:16]} 7. Bc4 {[%clk 0:02:53]}  Bg4 {[%clk 0:02:14]} 8. d4 {[%clk 0:02:51]}  Bxf3 {[%clk 0:02:15]} 9. gxf3 {[%clk 0:02:51]}  e6 {[%clk 0:02:15]} 10. d5 {[%clk 0:02:50]}  Ne5 {[%clk 0:02:16]} 11. Bf1 {[%clk 0:02:50]}  g5 {[%clk 0:02:16]} 12. Bg2 {[%clk 0:02:43]}  Nh5 {[%clk 0:02:13]} 13. Kh1 {[%clk 0:01:56]}  Nf4 {[%clk 0:02:11]} 14. Rg1 {[%clk 0:01:47]}  Qf6 {[%clk 0:02:09]} 15. dxe6 {[%clk 0:01:41]}  fxe6 {[%clk 0:02:09]} 16. Bf1 {[%clk 0:01:39]}  O-O-O {[%clk 0:02:04]} 17. Na3 {[%clk 0:01:36]}  d5 {[%clk 0:01:59]} 18. exd5 {[%clk 0:01:33]}  exd5 {[%clk 0:01:42]} 19. Rg3 {[%clk 0:01:26]}  h5 {[%clk 0:01:40]} 20. Bxf4 {[%clk 0:01:19]}  Qxf4 {[%clk 0:01:13]} 21. Qc1 {[%clk 0:01:13]}  Qxc1 {[%clk 0:01:14]} 22. Rxc1 {[%clk 0:01:12]}  g4 {[%clk 0:01:15]} 23. fxg4 {[%clk 0:01:08]}  hxg4 {[%clk 0:01:16]} 24. Be2 {[%clk 0:00:32]}  Rh4 {[%clk 0:01:15]} 25. Rcg1 {[%clk 0:00:19]}  Bd6 {[%clk 0:01:15]} 26. h3 {[%clk 0:00:13]}  Rf8 {[%clk 0:00:54]} 27. Bxg4+ {[%clk 0:00:10]}  Nxg4 {[%clk 0:00:55]} 28. Rxg4 {[%clk 0:00:11]}  Rxh3+ {[%clk 0:00:55]} 29. Kg2 {[%clk 0:00:10]}  Rh2+ {[%clk 0:00:56]} 30. Kf1 {[%clk 0:00:11]}  Rfxf2+ {[%clk 0:00:57]} 31. Ke1 {[%clk 0:00:11]}  Rxb2 {[%clk 0:00:55]} 32. Rg8+ {[%clk 0:00:08]}  Kc7 {[%clk 0:00:55]} 33. R8g7+ {[%clk 0:00:04]}  Kc6 {[%clk 0:00:55]} 34. c4 {[%clk 0:00:02]} 0-1


[Site "https://www.chess.com"]

[Event "Titled Tuesday Blitz November 08 Early 2022"]
[White "Kaplan, Avi Harrison"]
[Black "Kuznetsova, Olga"]
[WhiteFideId "30934559"]
[BlackFideId "4191323"]
[WhiteElo "1983"]
[BlackElo "2134"]
[Result "0-1"]
[Round "08"]
[TimeControl "180+1"]
[Date "2022.11.09"]
[WhiteClock "0:00:01"]
[BlackClock "0:00:42"]

1. a3 {[%clk 0:03:00]}  a5 {[%clk 0:02:57]} 2. d4 {[%clk 0:02:55]}  d5 {[%clk 0:02:56]} 3. c4 {[%clk 0:02:55]}  c6 {[%clk 0:02:56]} 4. Nc3 {[%clk 0:02:53]}  dxc4 {[%clk 0:02:53]} 5. e4 {[%clk 0:02:47]}  b5 {[%clk 0:02:52]} 6. b3 {[%clk 0:02:47]}  cxb3 {[%clk 0:02:48]} 7. Qxb3 {[%clk 0:02:47]}  a4 {[%clk 0:02:48]} 8. Qd1 {[%clk 0:02:43]}  Nf6 {[%clk 0:02:38]} 9. Nf3 {[%clk 0:02:43]}  e6 {[%clk 0:02:37]} 10. Bd3 {[%clk 0:02:42]}  h6 {[%clk 0:02:36]} 11. O-O {[%clk 0:02:41]}  Na6 {[%clk 0:02:31]} 12. Bf4 {[%clk 0:02:39]}  Be7 {[%clk 0:02:26]} 13. Qd2 {[%clk 0:02:33]}  Nh5 {[%clk 0:02:11]} 14. Be3 {[%clk 0:02:29]}  Bb7 {[%clk 0:02:03]} 15. e5 {[%clk 0:02:24]}  g5 {[%clk 0:01:58]} 16. Ne4 {[%clk 0:02:18]}  Ng7 {[%clk 0:01:45]} 17. Ng3 {[%clk 0:02:08]}  Qd5 {[%clk 0:01:36]} 18. Be4 {[%clk 0:02:05]}  Qd7 {[%clk 0:01:33]} 19. Rfc1 {[%clk 0:02:01]}  Rd8 {[%clk 0:01:31]} 20. h3 {[%clk 0:01:30]}  Nc7 {[%clk 0:01:24]} 21. Rc2 {[%clk 0:01:13]}  Nd5 {[%clk 0:01:23]} 22. Ne2 {[%clk 0:01:10]}  Nh5 {[%clk 0:01:09]} 23. g3 {[%clk 0:01:08]}  O-O {[%clk 0:01:02]} 24. h4 {[%clk 0:00:56]}  f5 {[%clk 0:00:59]} 25. exf6 {[%clk 0:00:50]}  Nhxf6 {[%clk 0:00:58]} 26. Bxd5 {[%clk 0:00:48]}  Nxd5 {[%clk 0:00:58]} 27. hxg5 {[%clk 0:00:48]}  Rxf3 {[%clk 0:00:58]} 28. gxh6 {[%clk 0:00:43]}  Nxe3 {[%clk 0:00:58]} 29. fxe3 {[%clk 0:00:42]}  Bd6 {[%clk 0:00:56]} 30. Qd3 {[%clk 0:00:39]}  Qh7 {[%clk 0:00:55]} 31. Qd2 {[%clk 0:00:28]}  Rdf8 {[%clk 0:00:48]} 32. Kg2 {[%clk 0:00:23]}  Qe4 {[%clk 0:00:44]} 33. Kg1 {[%clk 0:00:16]}  Rf2 {[%clk 0:00:44]} 34. Nf4 {[%clk 0:00:14]}  R8xf4 {[%clk 0:00:44]} 35. Qxf2 {[%clk 0:00:14]}  Rxf2 {[%clk 0:00:44]} 36. Rxf2 {[%clk 0:00:15]}  Qxe3 {[%clk 0:00:44]} 37. Rf1 {[%clk 0:00:12]}  Bxg3 {[%clk 0:00:43]} 38. h7+ {[%clk 0:00:13]}  Kxh7 {[%clk 0:00:43]} 39. Kg2 {[%clk 0:00:12]}  Bxf2 {[%clk 0:00:43]} 40. Rxf2 {[%clk 0:00:11]}  c5+ {[%clk 0:00:43]} 41. d5 {[%clk 0:00:10]}  Bxd5+ {[%clk 0:00:42]} 42. Kg1 {[%clk 0:00:07]}  Qg3+ {[%clk 0:00:41]} 43. Kf1 {[%clk 0:00:07]}  Bc4+ {[%clk 0:00:41]} 44. Ke1 {[%clk 0:00:06]}  Qe3+ {[%clk 0:00:41]} 45. Kd1 {[%clk 0:00:03]}  Qxf2 {[%clk 0:00:41]} 46. Kc1 {[%clk 0:00:04]}  Bd3 {[%clk 0:00:41]} 47. Kd1 {[%clk 0:00:04]}  Qe2+ {[%clk 0:00:42]} 48. Kc1 {[%clk 0:00:01]}  Qc2# {[%clk 0:00:42]} 0-1


[Site "https://www.chess.com"]